[Event "35th European Club Cup 2019"]
[Site "Ulcinj"]
[Date "2019.11.16"]
[Round "7.7"]
[White "Henderson De La Fuente, Lance"]
[Black "Petenyi, Tamas"]
[Result "0-1"]
[ECO "B06"]
[WhiteElo "2497"]
[BlackElo "2420"]
[Annotator "ChessBase"]
[PlyCount "84"]
[EventDate "2019.11.10"]
[EventType "team-tourn"]
[EventCountry "MNE"]
[SourceTitle "playchess.com"]
[Source "ChessBase"]
[SourceQuality "1"]
[WhiteTeam "Mulhouse"]
[BlackTeam "Dunajska Streda"]
[TimeControl "40/5400+30:1800+30"]

1. e4 {[%emt 0:00:00]} g6 {[%emt 0:00:21]} 2. d4 {[%emt 0:00:00]} Bg7 3. Nf3 c6 {[%emt 0:01:11]} 4. Nc3 {[%emt 0:00:56]} d6 {[%emt 0:01:10]} 5. h3 {[%emt 0:03:52]} Nf6 {[%emt 0:00:23]} 6. a4 {[%emt 0:00:53]} O-O {[%emt 0:00:10]} 7. Be2 {[%emt 0:00:23]} a5 {[%emt 0:02:17]} 8. O-O {[%emt 0:00:26]} Na6 {[%emt 0:03:27]} 9. Re1 {[%emt 0:04:06]} Nb4 {[%emt 0:01:23]} 10. Bf1 {[%emt 0:00:31]} e5 {[%emt 0:01:19]} 11. Bg5 {[%emt 0:09:05]} Qc7 {[%emt 0:04:46]} 12. Qd2 {[%emt 0:04:30]} Be6 {[%emt 0:03:28]} 13. Rad1 {[%emt 0:05:11]} Rad8 {[%emt 0:10:25]} 14. Nb1 Rfe8 15. c4 {[%emt 0:12:44]} exd4 {[%emt 0:16:45]} 16. Nxd4 {[%emt 0:00:36]} Rc8 {[%emt 0:06:12]} 17. Bf4 {[%emt 0:06:53]} Bd7 {[%emt 0:08:00]} 18. Nc3 {[%emt 0:00:44]} Nh5 {[%emt 0:00:37]} 19. Be3 {[%emt 0:00:40]} Nf6 {[%emt 0:03:01]} 20. Bg5 {[%emt 0:07:31]} d5 {[%emt 0:06:25]} 21. cxd5 {[%emt 0:12:37]} cxd5 {[%emt 0:00:09]} 22. exd5 {[%emt 0:01:05]} Rxe1 {[%emt 0:02:25]} 23. Qxe1 {[%emt 0:09:03]} Nfxd5 {[%emt 0:05:28]} 24. Nxd5 {[%emt 0:00:19]} Nxd5 {[%emt 0:00:04]} 25. Nb5 {[%emt 0:00:20]} Bxb5 {[%emt 0:02:10]} 26. Bxb5 {[%emt 0:00:12]} h6 {[%emt 0:02:24]} 27. Bd2 {[%emt 0:03:26]} b6 {[%emt 0:02:13]} 28. Rc1 {[%emt 0:02:31]} Qd8 {[%emt 0:00:26]} 29. b3 {[%emt 0:00:39]} Rxc1 {[%emt 0:01:22]} 30. Qxc1 {[%emt 0:00:10]} Bd4 {[%emt 0:04:39]} 31. Bc4 {[%emt 0:01:50]} h5 {[%emt 0:02:30]} 32. Qd1 {[%emt 0:02:06]} Ne7 {[%emt 0:02:46]} 33. Qf3 {[%emt 0:02:47]} Nf5 {[%emt 0:00:41]} 34. g4 {[%emt 0:06:11]} hxg4 {[%emt 0:00:15]} 35. hxg4 {[%emt 0:00:01]} Nd6 {[%emt 0:02:26]} 36. Bd5 {[%emt 0:00:01]} Qe7 {[%emt 0:00:59]} 37. Kg2 {[%emt 0:01:32]} Ne8 {[%emt 0:01:59]} 38. Bg5 {[%emt 0:03:00]} Nf6 {[%emt 0:00:55]} 39. Qd3 {[%emt 0:01:13]} Nxd5 {[%emt 0:00:14]} 40. Bxe7 {[%emt 0:00:00]} Nf4+ {[%emt 0:00:00]} 41. Kf3 {[%emt 0:01:18]} Nxd3 {[%emt 0:00:09]} 42. Ke4 {[%emt 0:00:05]} Bc5 {[%emt 0:00:15]} 0-1

[Event "35th European Club Cup 2019"]
[Site "Ulcinj"]
[Date "2019.11.16"]
[Round "7.7"]
[White "Pijpers, Arthur"]
[Black "Chigaev, Maksim"]
[Result "0-1"]
[ECO "C92"]
[WhiteElo "2473"]
[BlackElo "2623"]
[Annotator "ChessBase"]
[PlyCount "92"]
[EventDate "2019.11.10"]
[EventType "team-tourn"]
[EventCountry "MNE"]
[SourceTitle "playchess.com"]
[Source "ChessBase"]
[SourceQuality "1"]
[WhiteTeam "LSG IntelliMagic"]
[BlackTeam "Molodezka"]
[TimeControl "40/5400+30:1800+30"]

1. e4 {[%emt 0:00:00]} e5 {[%emt 0:00:00]} 2. Nf3 {[%emt 0:00:00]} Nc6 {[%emt 0:00:00]} 3. Bb5 {[%emt 0:00:00]} a6 {[%emt 0:00:00]} 4. Ba4 {[%emt 0:00:00]} Nf6 {[%emt 0:00:00]} 5. O-O {[%emt 0:00:00]} Be7 {[%emt 0:00:00]} 6. Re1 {[%emt 0:00:00]} b5 {[%emt 0:00:03]} 7. Bb3 {[%emt 0:00:00]} d6 {[%emt 0:00:07]} 8. c3 {[%emt 0:00:00]} O-O {[%emt 0:00:06]} 9. h3 {[%emt 0:00:00]} Re8 {[%emt 0:00:05]} 10. d4 {[%emt 0:00:02]} Bb7 {[%emt 0:00:04]} 11. Nbd2 {[%emt 0:00:06]} Bf8 {[%emt 0:00:05]} 12. a4 {[%emt 0:00:05]} Na5 {[%emt 0:00:07]} 13. Bc2 {[%emt 0:00:36]} exd4 {[%emt 0:00:06]} 14. cxd4 {[%emt 0:01:16]} b4 {[%emt 0:01:37]} 15. b3 {[%emt 0:06:04]} g6 {[%emt 0:00:52]} 16. Bb2 {[%emt 0:02:27]} d5 {[%emt 0:00:07]} 17. e5 {[%emt 0:01:45]} Nd7 {[%emt 0:00:57]} 18. Nf1 {[%emt 0:01:39]} c5 {[%emt 0:06:25]} 19. e6 {[%emt 0:20:05]} Rxe6 {[%emt 0:09:06]} 20. Rxe6 {[%emt 0:00:11]} fxe6 {[%emt 0:00:06]} 21. dxc5 {[%emt 0:00:08]} Bg7 {[%emt 0:00:13]} 22. Bxg7 {[%emt 0:03:44]} Kxg7 {[%emt 0:00:24]} 23. Ne3 {[%emt 0:18:54]} h5 {[%emt 0:03:20]} 24. Rc1 {[%emt 0:17:25]} Qf6 {[%emt 0:01:51]} 25. Qd2 {[%emt 0:06:07]} Nc6 {[%emt 0:00:36]} 26. Bd3 {[%emt 0:01:15]} Rf8 {[%emt 0:00:54]} 27. Bf1 {[%emt 0:09:24]} Nde5 {[%emt 0:08:04]} 28. Nxe5 {[%emt 0:00:05]} Qxe5 {[%emt 0:00:08]} 29. Nc2 {[%emt 0:02:28]} Qf4 {[%emt 0:02:30]} 30. Qe1 {[%emt 0:03:39]} h4 {[%emt 0:10:52]} 31. Rd1 {[%emt 0:00:53]} Rf7 {[%emt 0:05:00]} 32. Rd3 {[%emt 0:01:01]} a5 {[%emt 0:03:12]} 33. Rf3 {[%emt 0:01:35]} Qe5 {[%emt 0:00:48]} 34. Qxe5+ {[%emt 0:01:14]} Nxe5 {[%emt 0:00:06]} 35. Re3 {[%emt 0:00:02]} Kf6 {[%emt 0:02:05]} 36. Nd4 {[%emt 0:00:21]} g5 {[%emt 0:00:48]} 37. Nb5 {[%emt 0:04:01]} Bc6 {[%emt 0:00:58]} 38. Nd4 {[%emt 0:00:40]} Rc7 {[%emt 0:01:53]} 39. Re2 {[%emt 0:01:37]} Be8 {[%emt 0:05:35]} 40. Rc2 {[%emt 0:00:00]} Bg6 {[%emt 0:00:00]} 41. Rc1 {[%emt 0:00:32]} Nc6 {[%emt 0:00:42]} 42. Nb5 {[%emt 0:03:20]} Rd7 {[%emt 0:02:31]} 43. Nd6 {[%emt 0:01:56]} Nd4 {[%emt 0:01:18]} 44. Nb5 {[%emt 0:02:25]} Nxb3 {[%emt 0:02:17]} 45. c6 {[%emt 0:00:30]} Nxc1 {[%emt 0:00:30]} 46. cxd7 {[%emt 0:00:30]} Ke7 {[%emt 0:00:30]} 0-1

[Event "35th European Club Cup 2019"]
[Site "Ulcinj"]
[Date "2019.11.16"]
[Round "7.7"]
[White "Subelj, Jan"]
[Black "Edouard, Romain"]
[Result "0-1"]
[ECO "B51"]
[WhiteElo "2398"]
[BlackElo "2635"]
[Annotator "ChessBase"]
[PlyCount "104"]
[EventDate "2019.11.10"]
[EventType "team-tourn"]
[EventCountry "MNE"]
[SourceTitle "playchess.com"]
[Source "ChessBase"]
[SourceQuality "1"]
[WhiteTeam "Maribor"]
[BlackTeam "KGSRL Gent"]
[TimeControl "40/5400+30:1800+30"]

1. e4 {[%emt 0:00:00]} c5 {[%emt 0:00:00]} 2. Nf3 {[%emt 0:00:24]} d6 {[%emt 0:00:00]} 3. Bb5+ {[%emt 0:03:02]} Nd7 {[%emt 0:00:00]} 4. c3 {[%emt 0:00:05]} Ngf6 {[%emt 0:00:05]} 5. Qe2 {[%emt 0:00:05]} a6 {[%emt 0:00:02]} 6. Ba4 {[%emt 0:00:05]} g6 {[%emt 0:00:10]} 7. O-O {[%emt 0:01:08]} Bg7 {[%emt 0:00:04]} 8. d4 {[%emt 0:00:32]} b5 {[%emt 0:00:04]} 9. Bc2 {[%emt 0:00:52]} cxd4 {[%emt 0:00:10]} 10. cxd4 {[%emt 0:00:44]} O-O {[%emt 0:00:04]} 11. e5 {[%emt 0:19:05]} Ne8 {[%emt 0:00:44]} 12. e6 {[%emt 0:06:04]} fxe6 {[%emt 0:00:21]} 13. Ng5 {[%emt 0:09:26]} Nc7 {[%emt 0:02:51]} 14. Bd2 {[%emt 0:08:39]} a5 {[%emt 0:01:10]} 15. Bb3 {[%emt 0:06:43]} Nf6 {[%emt 0:00:53]} 16. Nxe6 {[%emt 0:09:13]} Bxe6 {[%emt 0:00:33]} 17. Bxe6+ {[%emt 0:03:08]} Kh8 {[%emt 0:00:03]} 18. Bh3 {[%emt 0:06:57]} Nh5 {[%emt 0:01:47]} 19. Qe4 {[%emt 0:03:59]} d5 {[%emt 0:00:32]} 20. Qh4 {[%emt 0:00:14]} Qd6 {[%emt 0:01:11]} 21. g3 {[%emt 0:03:30]} b4 {[%emt 0:00:47]} 22. Be3 {[%emt 0:00:56]} e5 {[%emt 0:01:48]} 23. Nd2 {[%emt 0:01:09]} Nf4 {[%emt 0:13:11]} 24. Bxf4 {[%emt 0:05:15]} exf4 {[%emt 0:00:10]} 25. Nf3 {[%emt 0:00:05]} Rae8 {[%emt 0:01:08]} 26. Kg2 {[%emt 0:03:43]} Re4 {[%emt 0:05:18]} 27. Rae1 {[%emt 0:02:42]} h6 {[%emt 0:00:31]} 28. Rxe4 {[%emt 0:01:35]} dxe4 {[%emt 0:00:09]} 29. Ne5 {[%emt 0:01:33]} Kh7 {[%emt 0:09:01]} 30. Rc1 Bxe5 31. dxe5 {[%emt 0:00:50]} Qxe5 {[%emt 0:00:34]} 32. gxf4 Rxf4 {[%emt 0:00:27]} 33. Qd8 {[%emt 0:01:55]} Rf7 {[%emt 0:00:45]} 34. Kh1 {[%emt 0:00:59]} h5 {[%emt 0:06:26]} 35. Qd2 {[%emt 0:01:21]} Ne6 {[%emt 0:02:25]} 36. Bxe6 {[%emt 0:01:14]} Qxe6 {[%emt 0:00:02]} 37. Qd4 {[%emt 0:00:09]} Rd7 {[%emt 0:05:22]} 38. Qe3 {[%emt 0:00:02]} Qxa2 {[%emt 0:00:12]} 39. Qxe4 {[%emt 0:00:03]} Qxb2 {[%emt 0:05:42]} 40. Rc6 {[%emt 0:00:00]} Qg7 {[%emt 0:00:00]} 41. Rc5 {[%emt 0:06:04]} Qf6 {[%emt 0:13:18]} 42. Rxa5 {[%emt 0:02:19]} Kg7 {[%emt 0:03:42]} 43. Kg2 {[%emt 0:01:17]} Rf7 {[%emt 0:06:06]} 44. f3 {[%emt 0:06:22]} b3 {[%emt 0:13:01]} 45. Rb5 {[%emt 0:02:07]} Qb2+ {[%emt 0:02:55]} 46. Kg3 {[%emt 0:02:54]} Qc3 {[%emt 0:00:20]} 47. Kg2 {[%emt 0:06:10]} Qd2+ {[%emt 0:16:18]} 48. Kg3 {[%emt 0:01:28]} h4+ {[%emt 0:00:35]} 49. Kh3 {[%emt 0:04:49]} Qd7+ {[%emt 0:00:10]} 50. Kg2 {[%emt 0:00:04]} Qxb5 {[%emt 0:00:09]} 51. Qd4+ {[%emt 0:00:03]} Rf6 {[%emt 0:00:14]} 52. Qa7+ {[%emt 0:00:06]} Kh6 {[%emt 0:00:09]} 0-1

[Event "35th European Club Cup 2019"]
[Site "Ulcinj"]
[Date "2019.11.16"]
[Round "7.8"]
[White "Paravyan, David"]
[Black "Sprenger, Jan Michael"]
[Result "1/2-1/2"]
[ECO "B41"]
[WhiteElo "2628"]
[BlackElo "2492"]
[Annotator "ChessBase"]
[PlyCount "95"]
[EventDate "2019.11.10"]
[EventType "team-tourn"]
[EventCountry "MNE"]
[SourceTitle "playchess.com"]
[Source "ChessBase"]
[SourceQuality "1"]
[WhiteTeam "Molodezka"]
[BlackTeam "LSG IntelliMagic"]
[TimeControl "40/5400+30:1800+30"]

1. e4 {[%emt 0:00:00]} c5 {[%emt 0:00:00]} 2. Nf3 {[%emt 0:00:00]} e6 {[%emt 0:00:00]} 3. d4 {[%emt 0:00:00]} cxd4 {[%emt 0:00:00]} 4. Nxd4 {[%emt 0:00:00]} a6 {[%emt 0:00:00]} 5. a3 {[%emt 0:00:00]} Nf6 {[%emt 0:05:18]} 6. Nc3 {[%emt 0:00:04]} Qc7 {[%emt 0:00:04]} 7. f4 {[%emt 0:00:07]} d6 {[%emt 0:00:42]} 8. g4 {[%emt 0:11:27]} Nc6 {[%emt 0:22:53]} 9. g5 {[%emt 0:00:48]} Nd7 {[%emt 0:00:05]} 10. Bc4 {[%emt 0:17:34]} Nc5 {[%emt 0:15:53]} 11. Ba2 {[%emt 0:20:39]} Bd7 {[%emt 0:03:56]} 12. Nf3 {[%emt 0:02:39]} Na7 {[%emt 0:04:29]} 13. Qe2 {[%emt 0:05:31]} Nb5 {[%emt 0:07:17]} 14. Nd1 {[%emt 0:00:04]} Nxe4 {[%emt 0:02:05]} 15. c4 {[%emt 0:25:08]} d5 {[%emt 0:00:27]} 16. cxd5 {[%emt 0:00:09]} Nbd6 {[%emt 0:03:10]} 17. Nd4 {[%emt 0:01:23]} exd5 {[%emt 0:03:40]} 18. Nc3 {[%emt 0:00:43]} Bc6 {[%emt 0:11:48]} 19. O-O {[%emt 0:06:28]} Be7 {[%emt 0:08:18]} 20. Be3 {[%emt 0:00:36]} Nxc3 {[%emt 0:02:05]} 21. bxc3 {[%emt 0:00:02]} Bb5 {[%emt 0:01:52]} 22. Nxb5 {[%emt 0:00:53]} Nxb5 {[%emt 0:00:08]} 23. Rac1 {[%emt 0:03:13]} O-O {[%emt 0:02:23]} 24. c4 {[%emt 0:00:25]} dxc4 {[%emt 0:00:05]} 25. Bxc4 {[%emt 0:00:36]} Bxa3 {[%emt 0:02:46]} 26. Bxb5 {[%emt 0:00:18]} Bxc1 {[%emt 0:00:05]} 27. Rxc1 {[%emt 0:00:03]} Qe7 {[%emt 0:00:50]} 28. Bd3 {[%emt 0:03:18]} Rfe8 {[%emt 0:00:48]} 29. Re1 {[%emt 0:00:04]} Rad8 {[%emt 0:00:52]} 30. Kf2 {[%emt 0:01:16]} Qd7 {[%emt 0:00:42]} 31. Bb1 {[%emt 0:01:26]} Qh3 {[%emt 0:00:56]} 32. Qf3 {[%emt 0:00:31]} Qxh2+ {[%emt 0:01:13]} 33. Kf1 {[%emt 0:00:01]} h5 {[%emt 0:00:53]} 34. g6 {[%emt 0:00:19]} fxg6 {[%emt 0:00:41]} 35. Bxg6 {[%emt 0:00:03]} Re7 {[%emt 0:00:05]} 36. f5 {[%emt 0:01:15]} Qh4 {[%emt 0:00:33]} 37. Rc1 {[%emt 0:00:49]} Red7 {[%emt 0:00:52]} 38. Bf2 {[%emt 0:00:30]} Qg4 {[%emt 0:00:12]} 39. Bxh5 {[%emt 0:00:33]} Qxf3 {[%emt 0:00:16]} 40. Bxf3 {[%emt 0:00:00]} Rf8 {[%emt 0:00:00]} 41. Be4 {[%emt 0:04:50]} g6 {[%emt 0:04:21]} 42. Rb1 {[%emt 0:13:23]} b5 {[%emt 0:02:18]} 43. Ra1 {[%emt 0:00:04]} gxf5 44. Bc6 {[%emt 0:00:04]} Rd6 {[%emt 0:01:36]} 45. Rxa6 {[%emt 0:01:26]} Rc8 {[%emt 0:01:04]} 46. Bxb5 {[%emt 0:00:04]} Rxa6 {[%emt 0:00:07]} 47. Bxa6 {[%emt 0:00:02]} Rc1+ {[%emt 0:00:05]} 48. Ke2 {[%emt 0:00:02]} 1/2-1/2

[Event "35th European Club Cup 2019"]
[Site "Ulcinj"]
[Date "2019.11.16"]
[Round "7.8"]
[White "Bagi, Mate"]
[Black "Riff, Jean-Noel"]
[Result "1/2-1/2"]
[ECO "C47"]
[WhiteElo "2470"]
[BlackElo "2514"]
[Annotator "ChessBase"]
[PlyCount "59"]
[EventDate "2019.11.10"]
[EventType "team-tourn"]
[EventCountry "MNE"]
[SourceTitle "playchess.com"]
[Source "ChessBase"]
[SourceQuality "1"]
[WhiteTeam "Dunajska Streda"]
[BlackTeam "Mulhouse"]
[TimeControl "40/5400+30:1800+30"]

1. e4 e5 2. Nf3 Nc6 3. Nc3 Nf6 4. d4 exd4 5. Nxd4 Bb4 6. Nxc6 bxc6 7. Bd3 d5 8. exd5 cxd5 9. O-O O-O 10. h3 Rb8 11. Qf3 Rb6 12. Bf4 Re8 13. Nb5 Rb7 14. a3 Bf8 15. b4 c5 16. bxc5 Bxc5 17. c4 Be6 18. Bg5 Rd7 19. Rac1 dxc4 20. Bxc4 Bxc4 21. Rxc4 Be7 22. a4 a6 23. Nc3 h6 24. Be3 Qa8 25. Qxa8 Rxa8 26. Rb1 Bd6 27. Bd4 Be7 28. Be3 Bd6 29. Bd4 Be7 30. Be3 1/2-1/2

[Event "35th European Club Cup 2019"]
[Site "Ulcinj"]
[Date "2019.11.16"]
[Round "7.8"]
[White "Fernandez, Daniel Howard"]
[Black "Bratkovic, Jakob"]
[Result "1-0"]
[ECO "A06"]
[WhiteElo "2444"]
[BlackElo "2308"]
[Annotator "NA"]
[PlyCount "78"]
[EventDate "2019.11.10"]
[EventType "team-tourn"]
[EventCountry "MNE"]
[SourceTitle "playchess.com"]
[Source "ChessBase"]
[SourceQuality "1"]
[WhiteTeam "KGSRL Gent"]
[BlackTeam "Maribor"]
[TimeControl "40/5400+30:1800+30"]

1. Nf3 {[%emt 0:00:00]} d5 {[%emt 0:00:56]} 2. c4 {[%emt 0:00:00]} c6 {[%emt 0:00:26]} 3. e3 {[%emt 0:00:00]} Nf6 {[%emt 0:00:35]} 4. b4 {[%emt 0:00:00]} g6 {[%emt 0:04:40]} 5. Bb2 {[%emt 0:00:00]} Bg7 {[%emt 0:00:05]} 6. Be2 {[%emt 0:00:30]} Nbd7 {[%emt 0:02:13]} 7. O-O {[%emt 0:00:11]} O-O {[%emt 0:00:23]} 8. a4 {[%emt 0:00:24]} Qc7 {[%emt 0:08:54]} 9. d4 dxc4 {[%emt 0:03:42]} 10. Bxc4 {[%emt 0:00:05]} e5 {[%emt 0:03:14]} 11. Nbd2 {[%emt 0:01:55]} e4 {[%emt 0:14:23]} 12. Ng5 {[%emt 0:01:28]} Nb6 {[%emt 0:00:13]} 13. Bb3 {[%emt 0:01:28]} Bf5 {[%emt 0:00:09]} 14. Qc2 {[%emt 0:00:35]} Rae8 {[%emt 0:03:00]} 15. b5 {[%emt 0:01:41]} h6 {[%emt 0:01:25]} 16. Nh3 {[%emt 0:00:02]} Bxh3 {[%emt 0:08:22]} 17. gxh3 {[%emt 0:00:02]} Qc8 {[%emt 0:07:09]} 18. Kg2 {[%emt 0:00:24]} Nbd7 {[%emt 0:16:47]} 19. bxc6 {[%emt 0:00:52]} bxc6 {[%emt 0:00:03]} 20. Rac1 {[%emt 0:01:41]} c5 {[%emt 0:01:11]} 21. dxc5 {[%emt 0:00:31]} Ne5 {[%emt 0:03:31]} 22. c6 {[%emt 0:00:36]} Nf3 {[%emt 0:02:27]} 23. Bxf6 {[%emt 0:02:16]} Bxf6 {[%emt 0:04:18]} 24. Nxe4 {[%emt 0:00:04]} Qf5 {[%emt 0:00:44]} 25. Nxf6+ {[%emt 0:02:36]} Qxf6 {[%emt 0:00:02]} 26. Qd1 {[%emt 0:00:33]} Re5 {[%emt 0:06:34]} 27. Qxf3 {[%emt 0:00:02]} Rg5+ {[%emt 0:00:04]} 28. Qg3 {[%emt 0:00:07]} Qe5 {[%emt 0:01:27]} 29. Rfd1 {[%emt 0:00:26]} Rc8 {[%emt 0:00:32]} 30. Rd4 {[%emt 0:01:59]} Rxg3+ {[%emt 0:01:47]} 31. hxg3 {[%emt 0:00:02]} Rc7 {[%emt 0:00:10]} 32. Bd1 {[%emt 0:01:10]} Kg7 {[%emt 0:00:35]} 33. Bf3 {[%emt 0:00:02]} Qa5 {[%emt 0:00:32]} 34. Rd7 {[%emt 0:02:19]} Qb6 {[%emt 0:02:40]} 35. Rxc7 {[%emt 0:00:14]} Qxc7 {[%emt 0:00:05]} 36. Rd1 {[%emt 0:00:04]} Qa5 {[%emt 0:00:50]} 37. Rd7 {[%emt 0:00:03]} Qxa4 {[%emt 0:00:07]} 38. Bd5 {[%emt 0:00:05]} Qb5 {[%emt 0:00:15]} 39. Rxf7+ {[%emt 0:00:06]} Kg8 {[%emt 0:00:14]} 1-0

[Event "35th European Club Cup 2019"]
[Site "Ulcinj"]
[Date "2019.11.16"]
[Round "7.9"]
[White "Sokolov, Andrei"]
[Black "Varga, Zoltan"]
[Result "1/2-1/2"]
[ECO "B03"]
[WhiteElo "2497"]
[BlackElo "2424"]
[Annotator "ChessBase"]
[PlyCount "67"]
[EventDate "2019.11.10"]
[EventType "team-tourn"]
[EventCountry "MNE"]
[SourceTitle "playchess.com"]
[Source "ChessBase"]
[SourceQuality "1"]
[WhiteTeam "Mulhouse"]
[BlackTeam "Dunajska Streda"]
[TimeControl "40/5400+30:1800+30"]

1. e4 Nf6 2. e5 Nd5 3. d4 d6 4. c4 Nb6 5. exd6 cxd6 6. Nc3 g6 7. Be3 Bg7 8. Rc1 O-O 9. Nf3 d5 10. c5 Nc4 11. Bxc4 dxc4 12. Qe2 Be6 13. Ng5 Bd5 14. Nxd5 Qxd5 15. O-O b5 16. cxb6 axb6 17. Qxc4 Qxc4 18. Rxc4 Rxa2 19. Rb1 Na6 20. Ne4 b5 21. Rc6 Nb4 22. Rb6 Rfa8 23. g3 Nc2 24. Rxb5 Nxd4 25. Rb7 R2a7 26. Rxa7 Rxa7 27. b4 Rb7 28. Kg2 h6 29. Nc5 Rb5 30. Nd3 Rd5 31. Nf4 Rb5 32. Nd3 Rd5 33. Nf4 Rb5 34. Nd3 1/2-1/2

[Event "35th European Club Cup 2019"]
[Site "Ulcinj"]
[Date "2019.11.16"]
[Round "7.9"]
[White "Mikhalchishin, Adrian"]
[Black "Ris, Robert"]
[Result "1/2-1/2"]
[ECO "D30"]
[WhiteElo "2467"]
[BlackElo "2454"]
[Annotator "ChessBase"]
[PlyCount "60"]
[EventDate "2019.11.10"]
[EventType "team-tourn"]
[EventCountry "MNE"]
[SourceTitle "playchess.com"]
[Source "ChessBase"]
[SourceQuality "1"]
[WhiteTeam "Maribor"]
[BlackTeam "KGSRL Gent"]
[TimeControl "40/5400+30:1800+30"]

1. d4 {[%emt 0:00:00]} d5 {[%emt 0:00:00]} 2. c4 {[%emt 0:00:00]} e6 {[%emt 0:00:00]} 3. Nf3 {[%emt 0:00:27]} a6 {[%emt 0:00:47]} 4. e3 {[%emt 0:00:40]} Nf6 {[%emt 0:00:25]} 5. a3 {[%emt 0:01:36]} dxc4 {[%emt 0:03:10]} 6. Bxc4 {[%emt 0:00:33]} c5 {[%emt 0:00:32]} 7. O-O {[%emt 0:00:26]} Nc6 {[%emt 0:00:44]} 8. dxc5 {[%emt 0:06:15]} Bxc5 {[%emt 0:04:23]} 9. Qxd8+ {[%emt 0:01:12]} Kxd8 {[%emt 0:00:22]} 10. b4 {[%emt 0:01:02]} Bd6 {[%emt 0:01:17]} 11. Bb2 {[%emt 0:00:16]} Ke7 {[%emt 0:01:48]} 12. Nbd2 {[%emt 0:01:14]} b5 {[%emt 0:02:40]} 13. Be2 {[%emt 0:01:23]} Bb7 {[%emt 0:03:09]} 14. Nb3 {[%emt 0:04:08]} Rhc8 {[%emt 0:11:38]} 15. Rfc1 {[%emt 0:02:35]} a5 {[%emt 0:16:40]} 16. bxa5 {[%emt 0:18:32]} Nxa5 {[%emt 0:00:58]} 17. Nxa5 {[%emt 0:21:26]} Rxc1+ {[%emt 0:07:03]} 18. Rxc1 {[%emt 0:00:38]} Bxf3 {[%emt 0:01:35]} 19. gxf3 {[%emt 0:01:00]} Rxa5 {[%emt 0:00:08]} 20. Bc3 {[%emt 0:02:59]} Rxa3 {[%emt 0:01:45]} 21. Bxb5 {[%emt 0:00:27]} Rb3 {[%emt 0:01:29]} 22. Bc6 {[%emt 0:01:03]} Rb8 {[%emt 0:02:32]} 23. Ra1 {[%emt 0:01:25]} Rc8 {[%emt 0:00:51]} 24. Ra7+ {[%emt 0:00:40]} Rc7 {[%emt 0:00:09]} 25. Rxc7+ {[%emt 0:00:21]} Bxc7 {[%emt 0:00:05]} 26. f4 {[%emt 0:00:06]} g6 {[%emt 0:01:53]} 27. Kg2 {[%emt 0:00:14]} Nd5 {[%emt 0:00:37]} 28. Bd4 {[%emt 0:00:59]} Bb6 {[%emt 0:00:40]} 29. Bxd5 {[%emt 0:00:30]} Bxd4 {[%emt 0:00:06]} 30. Bc6 {[%emt 0:00:06]} Bb6 {[%emt 0:00:06]} 1/2-1/2

[Event "35th European Club Cup 2019"]
[Site "Ulcinj"]
[Date "2019.11.16"]
[Round "7.10"]
[White "Yuffa, Daniil"]
[Black "De Jong, Jan-Willem"]
[Result "1-0"]
[ECO "A06"]
[WhiteElo "2578"]
[BlackElo "2446"]
[Annotator "ChessBase"]
[PlyCount "73"]
[EventDate "2019.11.10"]
[EventType "team-tourn"]
[EventCountry "MNE"]
[SourceTitle "playchess.com"]
[Source "ChessBase"]
[SourceQuality "1"]
[WhiteTeam "Molodezka"]
[BlackTeam "LSG IntelliMagic"]
[TimeControl "40/5400+30:1800+30"]

1. Nf3 {[%emt 0:00:00]} d5 {[%emt 0:00:00]} 2. g3 {[%emt 0:00:00]} Nf6 {[%emt 0:02:02]} 3. Bg2 {[%emt 0:01:21]} g6 {[%emt 0:00:28]} 4. O-O {[%emt 0:00:05]} Bg7 {[%emt 0:00:04]} 5. d3 {[%emt 0:00:02]} O-O {[%emt 0:02:52]} 6. Nbd2 {[%emt 0:02:13]} c5 {[%emt 0:03:49]} 7. e4 {[%emt 0:00:05]} Nc6 {[%emt 0:00:22]} 8. Re1 {[%emt 0:00:05]} Qc7 {[%emt 0:02:29]} 9. c3 {[%emt 0:07:15]} Rd8 {[%emt 0:01:17]} 10. Qb3 {[%emt 0:14:41]} b6 {[%emt 0:12:34]} 11. h3 {[%emt 0:08:25]} dxe4 {[%emt 0:27:02]} 12. dxe4 {[%emt 0:00:08]} h6 {[%emt 0:01:00]} 13. Qa4 {[%emt 0:18:50]} Bd7 {[%emt 0:03:35]} 14. Qc2 {[%emt 0:01:11]} e5 {[%emt 0:05:00]} 15. Nc4 {[%emt 0:04:44]} Be6 {[%emt 0:01:06]} 16. Ne3 {[%emt 0:00:13]} c4 {[%emt 0:01:08]} 17. g4 {[%emt 0:01:43]} Rac8 {[%emt 0:11:34]} 18. g5 {[%emt 0:02:25]} Nh5 {[%emt 0:00:39]} 19. Nd5 {[%emt 0:03:48]} Bxd5 {[%emt 0:00:56]} 20. exd5 {[%emt 0:00:08]} Ne7 {[%emt 0:03:20]} 21. gxh6 {[%emt 0:01:06]} Bf6 {[%emt 0:02:55]} 22. Ng5 {[%emt 0:01:36]} Nxd5 {[%emt 0:01:25]} 23. Ne6 {[%emt 0:01:22]} Qe7 {[%emt 0:04:14]} 24. Nxd8 {[%emt 0:01:12]} Rxd8 {[%emt 0:00:11]} 25. Bxd5 {[%emt 0:03:40]} Rxd5 {[%emt 0:00:04]} 26. Qe4 {[%emt 0:00:14]} Qd8 {[%emt 0:04:30]} 27. Qxc4 {[%emt 0:03:05]} Bg5 {[%emt 0:02:02]} 28. Bxg5 {[%emt 0:08:26]} Qxg5+ {[%emt 0:00:06]} 29. Qg4 {[%emt 0:00:08]} Qd8 {[%emt 0:00:32]} 30. Rad1 {[%emt 0:03:56]} Nf4 {[%emt 0:00:35]} 31. Qf3 {[%emt 0:00:57]} Rxd1 {[%emt 0:02:11]} 32. Rxd1 {[%emt 0:00:29]} Qg5+ {[%emt 0:01:20]} 33. Kh2 {[%emt 0:00:13]} Kh7 {[%emt 0:01:21]} 34. Rd7 {[%emt 0:00:29]} Kxh6 {[%emt 0:01:42]} 35. Rxf7 {[%emt 0:00:23]} Nh5 {[%emt 0:01:13]} 36. Qg4 {[%emt 0:01:18]} Qc1 {[%emt 0:00:34]} 37. h4 {[%emt 0:00:22]} 1-0